fUSD/lending_fUSD_20250304
["ID","MTS","AMOUNT","RATE_DAILY","PERIOD"]
[355350287,1741074642333,-1790.6,0.00011999,2]
[355350289,1741074642343,-13718.32,0.00011999,2]
[355350291,1741074642353,-4604.47,0.00011999,2]
[355350293,1741074642362,-1862.7,0.00011999,2]
[355350295,1741074642372,-2133.07,0.00011999,2]
[355350297,1741074642382,-3218.64,0.00011999,2]
[355350299,1741074642391,-298.16604101,0.00011999,2]
[355350301,1741074642400,-1512.64,0.00011999,2]
[355350303,1741074642410,-1181.43,0.00011999,2]
[355350305,1741074642419,-500.0,0.00011999,2]
[355350306,1741074642428,-974.21,0.00011999,2]
[355350309,1741074642438,-2036.21,0.00011999,2]
[355350310,1741074642447,-500.0,0.00011999,2]
[355350312,1741074642457,-657.79,0.00011999,2]
[355350314,1741074642466,-500.0,0.00011999,2]
[355350316,1741074642476,-2675.41,0.00011999,2]
[355350318,1741074642486,-332.1,0.00011999,2]
[355350320,1741074642495,-2993.19,0.00011999,2]
[355350322,1741074642504,-1748.31,0.00011999,2]
[355350324,1741074642514,-1371.67,0.00011999,2]
[355350326,1741074642524,-919.54,0.00011999,2]
[355350328,1741074642533,-1307.16,0.00011999,2]
[355350330,1741074642543,-1554.63,0.00011999,2]
[355350332,1741074642552,-2431.53,0.00011999,2]
[355350334,1741074642561,-1618.77,0.00011999,2]
[355350336,1741074642571,-5459.86,0.00011999,2]
[355350338,1741074642581,-2789.6,0.00011999,2]
[355350340,1741074642591,-3247.61,0.00011999,2]
[355350342,1741074642600,-2407.48,0.00011999,2]
[355350344,1741074642609,-219.04430744,0.00011999,2]
[355350346,1741074642619,-500.0,0.00011999,2]
[355350348,1741074642628,-500.0,0.00011999,2]
[355350350,1741074642637,-500.0,0.00011999,2]
[355350352,1741074642646,-523.56576475,0.00011999,2]
[355350354,1741074642655,-500.0,0.00011999,2]
[355350356,1741074642665,-500.0,0.00011999,2]
[355350358,1741074642675,-500.0,0.00011999,2]
[355350360,1741074642685,-500.0,0.00011999,2]
[355350361,1741074642697,-500.0,0.00011999,2]
[355350363,1741074642706,-500.0,0.00011999,2]
[355350365,1741074642716,-500.0,0.00011999,2]
[355350366,1741074642726,-500.0,0.00011999,2]
[355350368,1741074642736,-500.0,0.00011999,2]
[355350370,1741074642746,-500.0,0.00011999,2]
[355350372,1741074642756,-500.0,0.00011999,2]
[355350374,1741074642768,-500.0,0.00011999,2]
[355350376,1741074642778,-500.0,0.00011999,2]
[355350379,1741074642788,-266.49603532,0.00011999,2]
[355350381,1741074642798,-207.78224388,0.00012,2]
[355350383,1741074642807,-27365.72752004,0.00012,2]
[355350386,1741074642821,-613823.39685148,0.00012,2]
[355350388,1741074642831,-2278491.98886916,0.00012,2]
[355350395,1741074642917,-500.0,0.00011998,2]
[355350397,1741074642927,-1677.27208999,0.00012,2]
[355350399,1741074642938,-14681.36877435,0.00012,2]
[355350707,1741074646120,-550.0,0.00011998,2]
[355350709,1741074646129,-2306.84,0.00011999,2]
[355350711,1741074646138,-1080.7746116,0.00011999,2]
[355350713,1741074646150,-178.3953884,0.00011999,2]
[355350715,1741074646158,-658.4046116,0.00011999,2]
[355350719,1741074646187,-1169.650005,0.00011999,2]
[355350721,1741074646199,-606.9053834,0.00011999,2]
[355350723,1741074646209,-8400.42305311,0.00012,2]
[355350870,1741074647974,2325.33870021,0.00011998,2]
[355351011,1741074767859,3001.58156659,0.0001,2]
[355351014,1741075302790,-300.0,0.00011998,7]
[355351015,1741075304305,-209.7987119,0.00011998,7]
[355351016,1741075449063,-300.0,0.00010899,2]
[355351017,1741075450351,-300.0,0.00010899,2]
[355351018,1741075451529,-300.0,0.00010899,2]
[355351019,1741075453237,-54.40627331,0.00010899,2]
[355351020,1741075565036,668.92,8.834e-05,2]
[355351023,1741075802096,-371.18,0.00010371,2]
[355351024,1741075802133,-200.0,0.00010589,2]
[355351025,1741075802172,-150.0,0.00010672,2]
[355351026,1741075802209,-250.0,0.00010673,2]
[355351027,1741075802244,-4852.17685224,0.00010673,2]
[355351028,1741075802291,-6860.09960857,0.00010673,2]
[355351042,1741075832098,-438.97982347,0.00010673,2]
[355351046,1741075832235,-6247.1405031,0.00010673,2]
[355351047,1741075832247,-533.22015203,0.00010673,2]
[355351048,1741075832302,-82662.41862921,0.00010673,2]
[355351049,1741075832312,-162.13,0.00010714,2]
[355351050,1741075832324,-1000.0,0.00010821,2]
[355351051,1741075832334,-550.0,0.0001089,2]
[355351052,1741075832344,-171.931096,0.00010958,2]
[355351053,1741075832353,-46512.0,0.00010959,2]
[355351054,1741075832363,-151.12006273,0.00010973,2]
[355351055,1741075832375,-500.0,0.00010973,2]
[355351056,1741075832384,-1078.56,0.00010992,2]
[355351057,1741075832395,-2325.34,0.00010998,2]
[355351058,1741075832405,-816.87,0.00010999,2]
[355351059,1741075832415,-1080.43,0.00010999,2]
[355351060,1741075832424,-1363.832877,0.00010999,2]
[355351061,1741075832434,-2888.8,0.00010999,2]
[355351062,1741075832445,-1650.32,0.00010999,2]
[355351063,1741075832456,-971.3,0.00010999,2]
[355351064,1741075832467,-2040.260328,0.00010999,2]
[355351065,1741075832477,-3259.9,0.00010999,2]
[355351066,1741075832487,-949.22,0.00010999,2]
[355351067,1741075832498,-162.866886,0.00010999,2]
[355351068,1741075832508,-2775.42,0.00010999,2]
[355351069,1741075832517,-2514.58,0.00010999,2]
[355351070,1741075832526,-627.68,0.00010999,2]
[355351071,1741075832536,-299.99,0.00010999,2]
[355351072,1741075832545,-5649.01,0.00010999,2]
[355351073,1741075832555,-1126.51,0.00010999,2]
[355351074,1741075832564,-1647.7,0.00010999,2]
[355351075,1741075832574,-2812.3,0.00010999,2]
[355351076,1741075832585,-1474.45,0.00010999,2]
[355351077,1741075832595,-1559.06,0.00010999,2]
[355351078,1741075832605,-1979.08,0.00010999,2]
[355351079,1741075832614,-1173.36,0.00010999,2]
[355351080,1741075832628,-1822.41,0.00010999,2]
[355351081,1741075832638,-500.0,0.00010999,2]
[355351082,1741075832648,-1206.69,0.00010999,2]
[355351083,1741075832657,-2473.24,0.00010999,2]
[355351084,1741075832667,-3048.08,0.00010999,2]
[355351085,1741075832676,-3316.43,0.00010999,2]
[355351086,1741075832685,-4033.68,0.00010999,2]
[355351087,1741075832695,-1983.41,0.00010999,2]
[355351088,1741075832704,-3265.76,0.00010999,2]
[355351089,1741075832714,-6509.33,0.00010999,2]
[355351090,1741075832723,-739.55,0.00010999,2]
[355351091,1741075832733,-1124.1,0.00010999,2]
[355351092,1741075832743,-2441.02,0.00010999,2]
[355351093,1741075832752,-3088.46,0.00010999,2]
[355351094,1741075832762,-3084.53,0.00010999,2]
[355351095,1741075832771,-2477.78,0.00010999,2]
[355351096,1741075832781,-865.25,0.00010999,2]
[355351097,1741075832791,-13146.73,0.00010999,2]
[355351098,1741075832800,-3165.46,0.00010999,2]
[355351099,1741075832809,-3052.41,0.00010999,2]
[355351100,1741075832819,-1580.66,0.00010999,2]
[355351101,1741075832829,-1746.72,0.00010999,2]
[355351102,1741075832839,-1482.45,0.00010999,2]
[355351103,1741075832848,-3241.88,0.00010999,2]
[355351104,1741075832857,-2307.17,0.00010999,2]
[355351105,1741075832866,-2566.05,0.00010999,2]
[355351106,1741075832878,-615.24,0.00010999,2]
[355351107,1741075832888,-641.28,0.00010999,2]
[355351108,1741075832897,-1675.46,0.00010999,2]
[355351109,1741075832908,-1330.31,0.00010999,2]
[355351110,1741075832918,-7240.49,0.00010999,2]
[355351111,1741075832928,-153.33101521,0.00010999,2]
[355351112,1741075832937,-500.0,0.00010999,2]
[355351113,1741075832947,-500.0,0.00010999,2]
[355351114,1741075832956,-386.54722472,0.00010999,2]
[355351115,1741075832966,-500.0,0.00010999,2]
[355351116,1741075832980,-500.0,0.00010999,2]
[355351117,1741075832989,-500.0,0.00010999,2]
[355351118,1741075832999,-500.0,0.00010999,2]
[355351119,1741075833009,-500.0,0.00010999,2]
[355351120,1741075833020,-500.0,0.00010999,2]
[355351121,1741075833031,-500.0,0.00010999,2]
[355351122,1741075833043,-500.0,0.00010999,2]
[355351123,1741075833054,-500.0,0.00010999,2]
[355351124,1741075833065,-500.0,0.00010999,2]
[355351125,1741075833080,-350.0,0.00010999,2]
[355351126,1741075833091,-300.0,0.00010999,2]
[355351127,1741075833102,-525154.27732473,0.00011,2]
[355351128,1741075833120,-232752.75319329,0.00011,2]
[355351129,1741075833134,-2084.09225182,0.00011,2]
[355351130,1741075833267,-332.3511465,0.00011,2]
[355351131,1741075833280,-474.18521572,0.00011,2]
[355351134,1741075833299,-626.0,0.00011,2]
[355351175,1741075838187,-517.34603854,0.00010998,2]
[355351176,1741075838375,-108.52396146,0.00010998,2]
[355351177,1741075838386,-757.67603854,0.00010998,2]
[355351353,1741075840282,-643.65507974,0.00010998,2]
[355351356,1741075840306,-0.0458958,0.00010998,2]
[355351364,1741075840377,-224.23298592,0.00010998,2]
[355351366,1741075840387,-210.31447972,0.00010999,2]
[355351370,1741075840408,-825.09552028,0.00010999,2]
[355351371,1741075840417,-393.94961239,0.00010999,2]
[355351377,1741075840462,-2279.42038761,0.00010999,2]
[355351379,1741075840473,-2189340.98970256,0.00011,2]
[355351381,1741075840484,-250.0,0.00011,2]
[355351383,1741075840494,-250.0,0.00011,2]
[355351385,1741075840503,-250.0,0.00011,2]
[355351387,1741075840513,-250.0,0.00011,2]
[355351389,1741075840523,-250.0,0.00011,2]
[355351391,1741075840533,-250.0,0.00011,2]
[355351393,1741075840543,-250.0,0.00011,2]
[355351395,1741075840553,-250.0,0.00011,2]
[355351397,1741075840563,-250.0,0.00011,2]
[355351399,1741075840574,-250.0,0.00011,2]
[355351401,1741075840584,-250.0,0.00011,2]
[355351403,1741075840594,-250.0,0.00011,2]
[355351405,1741075840603,-250.0,0.00011,2]
[355351407,1741075840613,-250.0,0.00011,2]
[355351409,1741075840623,-250.0,0.00011,2]
[355351411,1741075840635,-250.0,0.00011,2]
[355351413,1741075840645,-250.0,0.00011,2]
[355351415,1741075840655,-250.0,0.00011,2]
[355351417,1741075840665,-250.0,0.00011,2]
[355351419,1741075840675,-250.0,0.00011,2]
[355351421,1741075840685,-250.0,0.00011,2]
[355351423,1741075840695,-250.0,0.00011,2]
[355351425,1741075840704,-250.0,0.00011,2]
[355351427,1741075840715,-250.0,0.00011,2]
[355351429,1741075840724,-250.0,0.00011,2]
[355351431,1741075840734,-250.0,0.00011,2]
[355351433,1741075840744,-250.0,0.00011,2]
[355351435,1741075840754,-250.0,0.00011,2]
[355351437,1741075840764,-295.1,0.00011,2]
[355351439,1741075840774,-757.06755424,0.00011058,2]
[355351441,1741075840784,-668.92,0.00011098,2]
[355351443,1741075840794,-362.37564204,0.00011099,2]
[355351445,1741075840804,-362.37564202,0.00011099,2]
[355351447,1741075840813,-1052.12424246,0.00011099,2]
[355351449,1741075840823,-1052.12424237,0.00011099,2]
[355351451,1741075840832,-150.41,0.00011158,2]
[355351453,1741075840841,-362.37564202,0.00011167,2]
[355351455,1741075840851,-362.37564202,0.00011272,2]
[355351457,1741075840860,-625.87,0.00011272,2]
[355351459,1741075840870,-1625.61,0.00011272,2]
[355351461,1741075840881,-1363.832877,0.00011273,2]
[355351463,1741075840891,-2888.8,0.00011273,2]
[355351465,1741075840900,-1650.32,0.00011273,2]
[355351467,1741075840910,-971.3,0.00011273,2]
[355351469,1741075840919,-2040.260328,0.00011273,2]
[355351471,1741075840930,-3259.9,0.00011273,2]
[355351473,1741075840940,-949.22,0.00011273,2]
[355351475,1741075840952,-2775.42,0.00011273,2]
[355351477,1741075840962,-2514.58,0.00011273,2]
[355351479,1741075840972,-627.68,0.00011273,2]
[355351481,1741075840981,-5649.01,0.00011273,2]
[355351483,1741075840992,-1126.51,0.00011273,2]
[355351485,1741075841002,-1647.7,0.00011273,2]
[355351487,1741075841012,-2812.3,0.00011273,2]
[355351489,1741075841022,-1474.45,0.00011273,2]
[355351492,1741075841042,-1559.06,0.00011273,2]
[355351494,1741075841054,-1979.08,0.00011273,2]
[355351496,1741075841064,-1173.36,0.00011273,2]
[355351498,1741075841079,-1822.41,0.00011273,2]
[355351500,1741075841089,-500.0,0.00011273,2]
[355351502,1741075841099,-1206.69,0.00011273,2]
[355351504,1741075841111,-2473.24,0.00011273,2]
[355351506,1741075841120,-3048.08,0.00011273,2]
[355351508,1741075841132,-3316.43,0.00011273,2]
[355351510,1741075841142,-4033.68,0.00011273,2]
[355351513,1741075841153,-1983.41,0.00011273,2]
[355351515,1741075841164,-3265.76,0.00011273,2]
[355351517,1741075841174,-6509.33,0.00011273,2]
[355351519,1741075841183,-739.55,0.00011273,2]
[355351521,1741075841194,-1124.1,0.00011273,2]
[355351523,1741075841204,-2441.02,0.00011273,2]
[355351525,1741075841214,-3088.46,0.00011273,2]
[355351527,1741075841224,-179.90696682,0.00011273,2]
[355351529,1741075841239,-883.25918109,0.00011273,2]
[355351938,1741075845423,-834.10579032,0.00010998,2]
[355351944,1741075845481,-324.496,0.00010998,2]
[355351948,1741075845515,-35.53820968,0.00010998,2]
[355351950,1741075845525,-776.77549704,0.00010999,2]
[355352006,1741075846061,-1517.8319108,0.00010999,2]
[355352008,1741075846079,-353.46259216,0.00010999,2]
[355352010,1741075846089,-1052.12424237,0.00011121,2]
[355352012,1741075846100,-1194.14,0.00011272,2]
[355352014,1741075846109,-2021.36385209,0.00011273,2]
[355352016,1741075846121,-395.89354338,0.00011273,2]
[355352018,1741075846135,-299.390001,0.00011273,2]
[355352021,1741075846153,-1782.49645562,0.00011273,2]
[355352023,1741075846163,-865.25,0.00011273,2]
[355352025,1741075846174,-5706.95742352,0.00011273,2]
[355352042,1741075846335,-468.68885309,0.00010998,2]
[355352044,1741075846347,-32.14114691,0.00010998,2]
[355352046,1741075846357,-1052.12424237,0.00011233,2]
[355352048,1741075846367,-7439.77257648,0.00011273,2]
[355352050,1741075846376,-3165.46,0.00011273,2]
[355352052,1741075846391,-2260.13050304,0.00011273,2]
[355352054,1741075846403,-792.27949696,0.00011273,2]
[355352056,1741075846413,-1580.66,0.00011273,2]
[355352058,1741075846423,-1746.72,0.00011273,2]
[355352060,1741075846432,-1482.45,0.00011273,2]
[355352062,1741075846442,-3241.88,0.00011273,2]
[355352064,1741075846460,-2307.17,0.00011273,2]
[355352066,1741075846470,-2566.05,0.00011273,2]
[355352068,1741075846481,-615.24,0.00011273,2]
[355352070,1741075846491,-641.28,0.00011273,2]
[355352072,1741075846500,-1675.46,0.00011273,2]
[355352074,1741075846510,-1330.31,0.00011273,2]
[355352076,1741075846520,-5479.52940344,0.00011273,2]
[355352078,1741075846533,-563.2364726,0.00011273,2]
[355352080,1741075846544,-1197.72412396,0.00011273,2]
[355352082,1741075846553,-471.17587604,0.00011273,2]
[355352085,1741075846569,-564.23412396,0.00011273,2]
[355352087,1741075846580,-2215.73406211,0.00011273,2]
[355352089,1741075846591,-457.63593789,0.00011273,2]
[355352091,1741075846601,-2648.07,0.00011273,2]
[355352093,1741075846611,-150.41,0.00011283,2]
[355352095,1741075846620,-362.37564202,0.00011377,2]
[355352097,1741075846631,-550.0,0.00011408,2]
[355352099,1741075846640,-150.0,0.00011408,2]
[355352101,1741075846651,-29.99606907,0.00011409,2]
[355353171,1741075983495,200.00000001,0.0002,120]
[355353172,1741076091337,-150.0,0.00012,3]
[355353173,1741076107942,-165.12,0.00010635,2]
[355353174,1741076107972,-300.0,0.00010997,2]
[355353175,1741076108004,-150.0,0.00010997,2]
[355353176,1741076108034,-1833.81,0.00010998,2]
[355353177,1741076108064,-500.0,0.00010998,2]
[355353178,1741076108098,-1069.89,0.00010998,2]
[355353179,1741076108129,-1316.46,0.00010998,2]
[355353180,1741076108162,-1201.99,0.00010998,2]
[355353181,1741076108195,-500.0,0.00010998,2]
[355353182,1741076108226,-560.29,0.00010998,2]
[355353183,1741076108257,-1503.34,0.00010998,2]
[355353184,1741076108289,-500.0,0.00010998,2]
[355353185,1741076108320,-1081.73,0.00010998,2]
[355353186,1741076108351,-1419.21,0.00010998,2]
[355353187,1741076108381,-938.67,0.00010998,2]
[355353188,1741076108413,-1579.05,0.00010998,2]
[355353189,1741076108442,-858.11,0.00010998,2]
[355353190,1741076108472,-967.01,0.00010998,2]
[355353191,1741076108502,-1567.28,0.00010998,2]
[355353192,1741076108528,-1360.75,0.00010998,2]
[355353193,1741076108550,-803.8,0.00010998,2]
[355353194,1741076108572,-1184.09,0.00010998,2]
[355353195,1741076108595,-500.0,0.00010998,2]
[355353196,1741076108615,-987.23,0.00010998,2]
[355353197,1741076108980,-761.16,0.00010998,2]
[355353198,1741076109011,-2414.87,0.00010998,2]
[355353199,1741076109033,-500.0,0.00010998,2]
[355353200,1741076109056,-500.0,0.00010998,2]
[355353201,1741076109078,-909.06,0.00010998,2]
[355353202,1741076109103,-708.73,0.00010998,2]
[355353203,1741076109125,-1238.1,0.00010998,2]
[355353204,1741076109148,-500.0,0.00010998,2]
[355353205,1741076109174,-798.85,0.00010998,2]
[355353206,1741076109198,-1358.28,0.00010998,2]
[355353207,1741076109220,-500.0,0.00010998,2]
[355353208,1741076109244,-500.0,0.00010998,2]
[355353209,1741076109266,-619.44,0.00010998,2]
[355353210,1741076109288,-831.32,0.00010998,2]
[355353211,1741076109312,-947.17,0.00010998,2]
[355353212,1741076109336,-2901.67,0.00010998,2]
[355353213,1741076109359,-575.34,0.00010998,2]
[355353214,1741076109381,-1277.87,0.00010998,2]
[355353215,1741076109405,-2239.27,0.00010998,2]
[355353216,1741076109428,-1393.84,0.00010998,2]
[355353217,1741076109449,-523.10383279,0.00010998,2]
[355353218,1741076109472,-2524.0,0.00010998,2]
[355353219,1741076109494,-698.83,0.00010998,2]
[355353220,1741076109516,-500.0,0.00010998,2]
[355353221,1741076109538,-1358.91,0.00010998,2]
[355353222,1741076109559,-518.24,0.00010998,2]
[355353223,1741076109580,-2352.22,0.00010998,2]
[355353224,1741076109604,-500.0,0.00010998,2]
[355353225,1741076109624,-587.84,0.00010998,2]
[355353226,1741076109647,-504.77,0.00010998,2]
[355353227,1741076109668,-500.0,0.00010998,2]
[355353228,1741076109690,-889.63,0.00010998,2]
[355353229,1741076109714,-6637.11,0.00010998,2]
[355353230,1741076109737,-1320.24,0.00010998,2]
[355353231,1741076109759,-820.53,0.00010998,2]
[355353232,1741076109782,-500.0,0.00010998,2]
[355353233,1741076109804,-878.64,0.00010998,2]
[355353234,1741076109827,-2547.76,0.00010998,2]
[355353235,1741076109855,-737.03,0.00010998,2]
[355353236,1741076109879,-930.83,0.00010998,2]
[355353237,1741076109903,-1892.44,0.00010998,2]
[355353238,1741076109929,-8334.53619277,0.00010998,2]
[355353239,1741076109953,-550.0,0.00010999,2]
[355353240,1741076109976,-150.0,0.00010999,2]
[355353241,1741076109998,-2988.24,0.00010999,2]
[355353242,1741076110023,-2452.16,0.00010999,2]
[355353243,1741076110047,-2544.13,0.00010999,2]
[355353244,1741076110071,-6295.92,0.00010999,2]
[355353245,1741076110097,-500.0,0.00010999,2]
[355353246,1741076110119,-575.38,0.00010999,2]
[355353247,1741076110142,-5178.26,0.00010999,2]
[355353248,1741076110168,-5648.36,0.00010999,2]
[355353249,1741076110192,-2643.4,0.00010999,2]
[355353250,1741076110217,-683.35,0.00010999,2]
[355353251,1741076110241,-1032.63,0.00010999,2]
[355353252,1741076110269,-500.0,0.00010999,2]
[355353253,1741076110292,-2088.81,0.00010999,2]
[355353254,1741076110318,-4362.18,0.00010999,2]
[355353255,1741076110344,-2616.0,0.00010999,2]
[355353256,1741076110367,-2434.12,0.00010999,2]
[355353257,1741076110391,-1896.62,0.00010999,2]
[355353258,1741076110415,-1156.41,0.00010999,2]
[355353259,1741076110438,-3095.83,0.00010999,2]
[355353260,1741076110460,-4101.86,0.00010999,2]
[355353261,1741076110483,-4090.92,0.00010999,2]
[355353262,1741076110506,-500.0,0.00010999,2]
[355353263,1741076110528,-2921.08,0.00010999,2]
[355353264,1741076110550,-560.82,0.00010999,2]
[355353265,1741076110573,-3129.69,0.00010999,2]
[355353266,1741076110599,-3865.61,0.00010999,2]
[355353267,1741076110622,-1330.64,0.00010999,2]
[355353268,1741076110644,-3752.16,0.00010999,2]
[355353269,1741076110666,-6238.11,0.00010999,2]
[355353270,1741076110688,-3204.33,0.00010999,2]
[355353271,1741076110710,-2834.98,0.00010999,2]
[355353272,1741076110732,-9046.58,0.00010999,2]
[355353273,1741076110754,-2959.77,0.00010999,2]
[355353274,1741076110776,-1715.99,0.00010999,2]
[355353275,1741076110798,-3289.91,0.00010999,2]
[355353276,1741076110821,-12051.17,0.00010999,2]
[355353277,1741076110845,-2044.19,0.00010999,2]
[355353278,1741076110868,-1132.2,0.00010999,2]
[355353279,1741076110890,-2114.91,0.00010999,2]
[355353280,1741076110914,-1449.62,0.00010999,2]
[355353281,1741076110937,-2563.93,0.00010999,2]
[355353282,1741076110961,-630.38,0.00010999,2]
[355353283,1741076110984,-1535.84,0.00010999,2]
[355353284,1741076111008,-881.23,0.00010999,2]
[355353285,1741076111032,-2330.22,0.00010999,2]
[355353286,1741076111056,-2217.88,0.00010999,2]
[355353287,1741076111080,-3581.56,0.00010999,2]
[355353288,1741076111105,-3112.29,0.00010999,2]
[355353289,1741076111129,-2362.64,0.00010999,2]
[355353290,1741076111153,-2210.72,0.00010999,2]
[355353291,1741076111180,-2667.83,0.00010999,2]
[355353292,1741076111205,-4057.33,0.00010999,2]
[355353293,1741076111228,-5042.31,0.00010999,2]
[355353294,1741076111252,-500.0,0.00010999,2]
[355353295,1741076111276,-3683.75,0.00010999,2]
[355353296,1741076111300,-762.18,0.00010999,2]
[355353297,1741076111325,-25575.55,0.00010999,2]
[355353298,1741076111349,-169.17509481,0.00011172,2]
[355353299,1741076111372,-550.0,0.00011177,2]
[355353300,1741076111395,-44485.0,0.00011205,2]
[355353301,1741076111419,-500.83,0.00011272,2]
[355353302,1741076111442,-1833.81,0.00011272,2]
[355353303,1741076111464,-476.91712487,0.00011272,2]
[355353304,1741076111488,-1069.89,0.00011272,2]
[355353305,1741076111511,-1316.46,0.00011272,2]
[355353306,1741076111533,-1201.99,0.00011272,2]
[355353307,1741076111556,-500.0,0.00011272,2]
[355353308,1741076111578,-560.29,0.00011272,2]
[355353309,1741076111602,-1503.34,0.00011272,2]
[355353310,1741076111625,-512.81483976,0.00011272,2]
[355353311,1741076111647,-1081.73,0.00011272,2]
[355353312,1741076111864,-1419.21,0.00011272,2]
[355353313,1741076111888,-938.67,0.00011272,2]
[355353314,1741076111911,-1579.05,0.00011272,2]
[355353315,1741076111932,-858.11,0.00011272,2]
[355353316,1741076111955,-967.01,0.00011272,2]
[355353317,1741076111979,-1567.28,0.00011272,2]
[355353318,1741076112003,-1360.75,0.00011272,2]
[355353319,1741076112027,-803.8,0.00011272,2]
[355353320,1741076112051,-1184.09,0.00011272,2]
[355353321,1741076112076,-500.0,0.00011272,2]
[355353322,1741076112101,-987.23,0.00011272,2]
[355353323,1741076112125,-761.16,0.00011272,2]
[355353324,1741076112150,-2414.87,0.00011272,2]
[355353325,1741076112180,-500.0,0.00011272,2]
[355353326,1741076112205,-500.0,0.00011272,2]
[355353327,1741076112228,-909.06,0.00011272,2]
[355353328,1741076112252,-708.73,0.00011272,2]
[355353329,1741076112275,-1238.1,0.00011272,2]
[355353330,1741076112297,-798.85,0.00011272,2]
[355353331,1741076112320,-1358.28,0.00011272,2]
[355353332,1741076112346,-500.0,0.00011272,2]
[355353333,1741076112369,-500.0,0.00011272,2]
[355353334,1741076112392,-619.44,0.00011272,2]
[355353335,1741076112416,-831.32,0.00011272,2]
[355353336,1741076112439,-947.17,0.00011272,2]
[355353337,1741076112462,-2901.67,0.00011272,2]
[355353338,1741076112486,-575.34,0.00011272,2]
[355353339,1741076112509,-1277.87,0.00011272,2]
[355353340,1741076112532,-1959.252915,0.00011272,2]
[355353341,1741076113211,1955.249481,0.00010998,2]
[355353342,1741076114964,710.3,0.00010998,2]
[355353343,1741076116031,1351.05782532,0.00010998,2]
[355353345,1741076393127,-150.0,0.00010641,7]
[355353346,1741076393149,-150.0,0.00010997,2]
[355353347,1741076393170,-25.27667778,0.00010997,2]
[355353348,1741076573466,671.04,8.475e-05,2]
[355353352,1741076772345,353.84,0.00010183,2]
[355353355,1741076808794,-200.0,0.00010241,2]
[355353356,1741076808824,-1000.0,0.00010322,2]
[355353357,1741076808852,-426.31,0.00010347,2]
[355353358,1741076808882,-2000.0,0.00010376,2]
[355353359,1741076808911,-5165.7,0.00010452,2]
[355353360,1741076808941,-173.6,0.00010498,2]
[355353361,1741076808972,-671.04,0.00010739,2]
[355353362,1741076809008,-250.0,0.00010822,2]
[355353363,1741076809038,-300.0,0.00010897,2]
[355353364,1741076809068,-757.06755424,0.00010899,2]
[355353365,1741076809097,-342.5610295,0.00010972,2]
[355353366,1741076809126,-150.0,0.00010997,2]
[355353367,1741076809157,-975.15,0.00010998,2]
[355353368,1741076809186,-1824.38,0.00010998,2]
[355353369,1741076809215,-302.06947744,0.00010998,2]
[355353370,1741076809247,-1085.79,0.00010998,2]
[355353371,1741076809277,-1595.4,0.00010998,2]
[355353372,1741076809308,-1545.48,0.00010998,2]
[355353373,1741076809337,-1420.34,0.00010998,2]
[355353374,1741076809371,-500.0,0.00010998,2]
[355353375,1741076809404,-1839.14,0.00010998,2]
[355353376,1741076809435,-1200.42,0.00010998,2]
[355353377,1741076809468,-1326.99,0.00010998,2]
[355353378,1741076809500,-790.44,0.00010998,2]
[355353379,1741076809531,-726.25,0.00010998,2]
[355353380,1741076809559,-733.69,0.00010998,2]
[355353381,1741076809587,-2020.14,0.00010998,2]